bitfinex-derivatives/quotes_BTCF0:USTF0_20240925
["timestamp","ask_amount","ask_price","bid_price","bid_amount"]
[1727269177268,0.79811524,63659.0,63651.0,0.3645]
[1727269177476,0.79811524,63659.0,63651.0,0.439357]
[1727269177477,0.39432288,63652.0,63651.0,0.439357]
[1727269178071,0.42907423,63652.0,63651.0,0.439357]
[1727269178478,0.42905829,63652.0,63651.0,0.439357]
[1727269178681,0.35050229,63652.0,63651.0,0.439357]
[1727269179172,0.35150229,63652.0,63651.0,0.439357]
[1727269179377,0.33506879,63652.0,63651.0,0.439357]
[1727269179585,0.36980046,63652.0,63651.0,0.439357]
[1727269179967,0.33506879,63652.0,63651.0,0.440357]
[1727269180568,0.44834924,63652.0,63651.0,0.440357]
[1727269181067,0.3743215,63652.0,63651.0,0.54630643]
[1727269181471,0.3743215,63652.0,63651.0,0.51883593]
[1727269181871,0.3743215,63652.0,63651.0,0.440357]
[1727269183575,0.3743215,63652.0,63651.0,0.50312564]
[1727269184173,0.3743215,63652.0,63651.0,0.440357]
[1727269185572,0.3743215,63652.0,63651.0,0.48742655]
[1727269187676,0.3743215,63652.0,63651.0,0.079557]
[1727269188470,0.7351215,63652.0,63651.0,0.001]
[1727269188678,0.8136775,63652.0,63651.0,0.001]
[1727269190885,0.67646662,63652.0,63651.0,0.001]
[1727269191090,0.078564,63645.0,63644.0,0.0037]
[1727269191285,0.67656688,63645.0,63639.0,0.04706955]
[1727269191475,0.07857,63642.0,63641.0,0.078569]
[1727269191673,0.078572,63639.0,63638.0,0.0313]
[1727269191975,0.29433888,63639.0,63638.0,0.0313]
[1727269192176,0.39433888,63639.0,63638.0,0.0313]
[1727269193277,0.21576688,63639.0,63638.0,0.109873]
[1727269193481,0.33359762,63639.0,63638.0,0.109873]
[1727269194385,0.33459762,63639.0,63638.0,0.109873]
[1727269194598,0.33559762,63639.0,63638.0,0.109873]
[1727269194790,0.33559762,63639.0,63636.0,0.04706955]
[1727269194975,0.65514088,63637.0,63635.0,0.04706955]
[1727269195289,0.078574,63637.0,63636.0,0.078575]
[1727269195681,0.29434088,63637.0,63636.0,0.078575]
[1727269196686,0.39434088,63637.0,63636.0,0.078575]
[1727269197784,0.39534088,63637.0,63636.0,0.078575]
[1727269198179,0.39634088,63637.0,63636.0,0.078575]
[1727269202594,0.39634088,63637.0,63633.0,0.078579]
[1727269202595,0.07858,63634.0,63633.0,0.078579]
[1727269202802,0.17858,63634.0,63633.0,0.078579]
[1727269203093,0.39434688,63634.0,63633.0,0.078579]
[1727269203277,0.31576688,63634.0,63630.0,0.0332]
[1727269203485,0.002,63637.0,63630.0,0.0332]
[1727269203486,0.31576688,63631.0,63630.0,0.0332]
[1727269204395,0.67656688,63631.0,63630.0,0.0332]
[1727269204986,0.31576688,63631.0,63630.0,0.0332]
[1727269205189,0.21576688,63631.0,63630.0,0.0332]
[1727269205394,0.31676688,63631.0,63630.0,0.0332]
[1727269205693,0.21676688,63631.0,63630.0,0.0332]
[1727269205993,0.31676688,63631.0,63630.0,0.0332]
[1727269206394,0.21776688,63631.0,63630.0,0.0332]
[1727269206583,0.002,63631.0,63630.0,1.46548]
[1727269206784,0.0037,63639.0,63630.0,1.84316726]
[1727269206992,0.11596688,63638.0,63634.0,0.04699334]
[1727269207290,0.11596688,63638.0,63630.0,0.70892329]
[1727269207291,0.11596688,63638.0,63635.0,0.04699334]
[1727269207492,0.11596688,63638.0,63636.0,0.0319]
[1727269208307,0.11596688,63638.0,63636.0,0.07889334]
[1727269208482,0.11596688,63638.0,63636.0,0.0319]
[1727269209383,0.14,63637.0,63636.0,0.001]
[1727269209700,0.25596688,63637.0,63636.0,0.001]
[1727269210389,0.61676688,63637.0,63636.0,0.001]
[1727269210899,0.61676688,63637.0,63629.0,0.0037]
[1727269210900,0.67886688,63637.0,63629.0,0.0037]
[1727269211097,0.67886688,63637.0,63626.0,0.0037]
[1727269211098,0.47676688,63630.0,63626.0,0.0037]
[1727269211286,0.14,63627.0,63621.0,0.0037]
[1727269211493,0.25596688,63622.0,63618.0,0.0037]
[1727269211699,0.3608,63623.0,63610.0,0.04699334]
[1727269211700,0.11596688,63616.0,63614.0,0.3645]
[1727269211999,0.25596688,63615.0,63614.0,0.3645]
[1727269212192,0.25596688,63615.0,63614.0,0.3608]
[1727269213502,0.25796688,63615.0,63614.0,0.3618]
[1727269214997,0.11796688,63615.0,63614.0,0.3618]
[1727269219499,0.11796688,63615.0,63614.0,0.40879334]
[1727269219695,0.11796688,63615.0,63614.0,0.3618]
[1727269220095,0.25796688,63615.0,63614.0,0.3618]
[1727269220298,0.61876688,63615.0,63614.0,0.001]
[1727269221808,0.25796688,63615.0,63614.0,0.001]
[1727269227311,0.11796688,63615.0,63614.0,0.001]
[1727269227519,0.25796688,63615.0,63614.0,0.001]
[1727269229514,0.11796688,63615.0,63614.0,0.001]
[1727269229721,0.25796688,63615.0,63614.0,0.001]
[1727269231622,0.002,63615.0,63614.0,0.001]
[1727269231806,0.002,63615.0,63614.0,0.40879334]
[1727269232004,0.1437,63622.0,63614.0,0.3618]
[1727269232211,0.11596688,63620.0,63616.0,0.04698332]
[1727269232411,0.11596688,63620.0,63617.0,0.0304]
[1727269232620,0.14,63618.0,63617.0,0.0304]
[1727269232929,0.14,63618.0,63615.0,0.04698332]
[1727269233218,0.11596688,63616.0,63615.0,0.04698332]
[1727269233420,0.11596688,63616.0,63612.0,0.09345778]
[1727269233421,0.11596688,63616.0,63613.0,0.04698332]
[1727269233610,0.3608,63621.0,63613.0,0.04698332]
[1727269233611,0.25596688,63614.0,63613.0,0.04698332]
[1727269233917,0.25596688,63614.0,63612.0,0.04698332]
[1727269234119,0.11596688,63612.0,63609.0,0.06265778]
[1727269236322,0.11696688,63612.0,63609.0,0.06465778]
[1727269236521,0.11696688,63612.0,63609.0,0.002]
[1727269236827,0.11696688,63612.0,63609.0,0.03301571]
[1727269237029,0.11696688,63612.0,63608.0,0.0328]
[1727269237321,0.11696688,63612.0,63608.0,0.09545778]
[1727269237721,0.11696688,63612.0,63609.0,0.06265778]
[1727269237918,0.001,63612.0,63609.0,0.06265778]
[1727269238119,0.001,63612.0,63610.0,0.06265778]
[1727269238338,0.001,63612.0,63610.0,0.17985321]
[1727269238528,0.001,63612.0,63609.0,0.17985321]
[1727269238717,0.001,63612.0,63608.0,0.47335893]
[1727269238919,0.001,63612.0,63608.0,0.47207893]
[1727269239114,0.001,63612.0,63609.0,0.16547947]
[1727269239324,0.001,63612.0,63611.0,0.07847893]
[1727269239520,0.0037,63618.0,63611.0,0.10692448]
[1727269239721,0.0037,63622.0,63617.0,0.3608]
[1727269240016,0.11596688,63619.0,63617.0,0.3608]
[1727269240216,0.11596688,63619.0,63618.0,0.157196]
[1727269240718,0.11596688,63619.0,63618.0,0.235794]
[1727269241721,0.11596688,63619.0,63618.0,0.157196]
[1727269242124,0.11596688,63619.0,63618.0,0.22004194]
[1727269242522,0.11596688,63619.0,63618.0,0.157196]
[1727269242924,0.11596688,63619.0,63618.0,0.22004232]
[1727269243126,0.11596688,63619.0,63618.0,0.157196]
[1727269243322,0.25596688,63619.0,63618.0,0.22004147]
[1727269243729,0.25596688,63619.0,63618.0,0.157196]
[1727269243930,0.0037,63627.0,63626.0,0.235764]
[1727269244241,0.00235795,63634.0,63633.0,0.078579]
[1727269244242,0.00605795,63634.0,63633.0,0.078579]
[1727269244423,0.00235795,63634.0,63633.0,0.078579]
[1727269244625,0.03600983,63634.0,63633.0,0.078579]
[1727269245526,0.3608,63640.0,63639.0,0.078572]
[1727269245730,0.03365188,63640.0,63636.0,0.078575]
[1727269245934,0.0037,63644.0,63643.0,0.078567]
[1727269246232,0.078572,63639.0,63637.0,0.16969536]
[1727269246433,0.078574,63637.0,63636.0,0.16599536]
[1727269246625,0.11222588,63637.0,63633.0,0.078579]
[1727269246830,0.03365188,63634.0,63633.0,0.078579]
[1727269247137,0.17365188,63634.0,63633.0,0.078579]
[1727269249223,0.18165188,63634.0,63633.0,0.079579]
[1727269249624,0.26022988,63634.0,63633.0,0.079579]
[1727269250228,0.26022988,63634.0,63633.0,0.001]
[1727269250536,0.25222988,63634.0,63630.0,0.078582]
[1727269250840,0.12710055,63631.0,63630.0,0.078582]
[1727269251424,0.12710055,63631.0,63626.0,0.10659385]
[1727269251624,0.61303788,63627.0,63626.0,0.10659385]
[1727269251831,0.078592,63623.0,63621.0,0.082293]
[1727269252033,0.078592,63623.0,63621.0,0.078593]
[1727269252034,0.26708171,63622.0,63621.0,0.078593]
[1727269252539,0.17365188,63622.0,63621.0,0.078593]
[1727269254840,0.26708171,63622.0,63621.0,0.078593]
[1727269255043,0.12708171,63622.0,63621.0,0.078593]
[1727269255241,0.26708171,63622.0,63621.0,0.078593]
[1727269255437,0.34567471,63622.0,63621.0,0.078593]
[1727269256138,0.25224488,63622.0,63621.0,0.078593]
[1727269257440,0.17365188,63622.0,63621.0,0.078593]
[1727269259144,0.25224488,63622.0,63621.0,0.078593]
[1727269260338,0.078594,63621.0,63620.0,0.00235771]
[1727269260549,0.47304588,63621.0,63620.0,0.00235771]
[1727269261648,0.47304588,63621.0,63620.0,0.08095271]
[1727269262135,0.61304588,63621.0,63620.0,0.08195271]
[1727269263141,0.69163988,63621.0,63620.0,0.00335771]
[1727269263547,0.70960907,63621.0,63620.0,0.00335771]
[1727269264549,0.41242107,63621.0,63620.0,0.08195271]
[1727269264755,0.03365188,63621.0,63620.0,0.08195271]
[1727269265059,0.43942434,63627.0,63626.0,0.078588]
[1727269265248,0.07782434,63633.0,63623.0,0.078591]
[1727269265445,0.14,63634.0,63633.0,0.078579]
[1727269265952,0.17365188,63634.0,63633.0,0.078579]
[1727269267356,0.18565188,63634.0,63633.0,0.078579]
[1727269268647,0.18565188,63634.0,63626.0,0.0037]
[1727269268648,0.26347622,63634.0,63630.0,0.078582]
[1727269268945,0.11223888,63627.0,63626.0,0.078587]
[1727269269258,0.25223888,63627.0,63626.0,0.078587]
[1727269269449,0.33008231,63627.0,63626.0,0.078587]
[1727269269752,0.25223888,63627.0,63626.0,0.078587]
[1727269270455,0.33007999,63627.0,63626.0,0.078587]
[1727269270952,0.33507999,63627.0,63626.0,0.078587]
[1727269271144,0.17865188,63627.0,63622.0,0.078592]
[1727269271346,0.17365188,63620.0,63616.0,0.0037]
[1727269271560,0.03365188,63614.0,63612.0,0.0037]
[1727269271748,0.03365188,63614.0,63611.0,0.23490606]
[1727269271749,0.14,63612.0,63611.0,0.23490606]
[1727269273349,0.141,63612.0,63611.0,0.23790606]
[1727269274462,0.17465188,63612.0,63611.0,0.23790606]
[1727269275653,0.17465188,63612.0,63611.0,0.175106]
[1727269276256,0.0037,63620.0,63611.0,0.175106]
[1727269276463,0.0079,63635.0,63622.0,0.078593]
[1727269276670,0.0079,63635.0,63634.0,0.078578]
[1727269276671,0.078577,63635.0,63634.0,0.078578]
[1727269276963,0.218577,63635.0,63634.0,0.078578]
[1727269277864,0.14,63635.0,63631.0,0.078581]
[1727269278166,0.14,63632.0,63631.0,0.078581]
[1727269279163,0.21858,63632.0,63631.0,0.078581]
[1727269279955,0.22858,63632.0,63631.0,0.079581]
[1727269280465,0.22858,63632.0,63631.0,0.001]
[1727269280650,0.3064158,63632.0,63631.0,0.001]
[1727269281060,0.22858,63632.0,63631.0,0.001]
[1727269281967,0.30653078,63632.0,63631.0,0.001]
[1727269282473,0.33793078,63632.0,63631.0,0.001]
[1727269282676,0.41651078,63632.0,63631.0,0.001]
[1727269282973,0.078601,63616.0,63611.0,0.09343125]
[1727269283272,0.5008,63612.0,63611.0,0.109306]
[1727269284177,0.5008,63612.0,63611.0,0.113306]
[1727269285871,0.141,63612.0,63611.0,0.112306]
[1727269286778,0.23453091,63612.0,63611.0,0.112306]
[1727269286981,0.141,63612.0,63611.0,0.112306]
[1727269288387,0.23453091,63612.0,63611.0,0.112306]
[1727269288881,0.141,63612.0,63611.0,0.112306]
[1727269289080,0.141,63612.0,63611.0,0.081606]
[1727269289377,0.151,63612.0,63611.0,0.081606]
[1727269289771,0.141,63612.0,63611.0,0.081606]
[1727269290375,0.23446597,63612.0,63611.0,0.081606]
[1727269290982,0.141,63612.0,63611.0,0.081606]
[1727269293985,0.229605,63612.0,63611.0,0.081606]
[1727269294469,0.30821,63612.0,63611.0,0.003]
[1727269297275,0.15821,63612.0,63611.0,0.003]
[1727269297481,0.229605,63612.0,63611.0,0.003]
[1727269297688,0.32596787,63612.0,63611.0,0.003]
[1727269297890,0.24736287,63612.0,63611.0,0.003]
[1727269301384,0.24736287,63612.0,63611.0,0.081606]
[1727269302292,0.34078613,63612.0,63611.0,0.003]
[1727269302490,0.34078524,63612.0,63611.0,0.003]
[1727269302885,0.28014891,63612.0,63611.0,0.003]
[1727269303188,0.24736287,63612.0,63611.0,0.003]
[1727269305096,0.24736287,63612.0,63611.0,0.081606]
[1727269307296,0.28018935,63612.0,63611.0,0.081606]
[1727269307488,0.24736287,63612.0,63611.0,0.081606]
[1727269308084,0.01875787,63612.0,63611.0,0.081606]
[1727269308288,0.11221538,63612.0,63611.0,0.160212]
[1727269308494,0.01875787,63612.0,63611.0,0.160212]
[1727269312682,0.01875787,63612.0,63611.0,0.081606]
[1727269312894,0.15875787,63612.0,63611.0,0.081606]
[1727269316793,0.1919409,63612.0,63611.0,0.081606]
[1727269318593,0.30147731,63612.0,63611.0,0.081606]
[1727269318790,0.1919409,63612.0,63611.0,0.081606]
[1727269322002,0.19193424,63612.0,63611.0,0.081606]
[1727269322599,0.28053924,63612.0,63611.0,0.081606]
[1727269322795,0.39007565,63612.0,63611.0,0.081606]
[1727269323401,0.24736287,63612.0,63611.0,0.081606]
[1727269324790,0.32596787,63612.0,63611.0,0.003]
[1727269324996,0.078614,63605.0,63604.0,0.082314]
[1727269325304,0.078618,63602.0,63601.0,0.078618]
[1727269325501,0.15,63602.0,63601.0,0.078618]
[1727269326397,0.147,63602.0,63601.0,0.078618]
[1727269327201,0.16496091,63602.0,63601.0,0.078618]
[1727269328800,0.16596091,63602.0,63601.0,0.078618]
[1727269332604,0.16596091,63602.0,63601.0,0.078618]
[1727269333703,0.078622,63599.0,63584.0,0.06280534]
[1727269333899,0.078622,63599.0,63578.0,0.3608]
[1727269333900,0.15,63585.0,63578.0,0.3608]
[1727269334104,0.15,63579.0,63572.0,0.3608]
[1727269334305,1.5,63578.0,63572.0,0.3608]
[1727269335417,0.01773269,63578.0,63572.0,0.3608]
[1727269335616,0.15,63579.0,63572.0,0.3608]
[1727269335816,0.001,63578.0,63572.0,0.3608]
[1727269336207,0.001,63578.0,63577.0,0.228648]
[1727269336407,0.15,63589.0,63577.0,0.228648]
[1727269336615,0.15,63589.0,63577.0,0.25705148]
[1727269336817,0.15,63589.0,63578.0,0.0309]
[1727269337011,0.15,63585.0,63578.0,0.0309]
[1727269337726,0.078635,63588.0,63578.0,0.109547]
[1727269337932,0.078635,63588.0,63581.0,0.3608]
[1727269338224,0.078635,63588.0,63582.0,0.0301]
[1727269339312,0.079635,63588.0,63582.0,0.0301]
[1727269339718,0.078636,63587.0,63582.0,0.0301]
[1727269340126,0.15,63583.0,63582.0,0.0301]
[1727269340324,0.001,63588.0,63582.0,0.0301]
[1727269340520,0.15,63595.0,63587.0,0.3608]
[1727269340728,0.15,63595.0,63593.0,0.078628]
[1727269340924,0.15,63595.0,63594.0,0.0633]
[1727269342033,0.228626,63595.0,63594.0,0.0633]
[1727269342329,0.15,63595.0,63581.0,0.3608]
[1727269342634,0.0935837,63595.0,63582.0,0.0315]
[1727269342829,0.078641,63583.0,63582.0,0.0315]
[1727269344521,0.078641,63583.0,63581.0,0.001]
[1727269344522,0.078642,63582.0,63581.0,0.001]
[1727269345834,0.078643,63581.0,63580.0,0.0304]
[1727269347547,0.229643,63581.0,63580.0,0.0304]
[1727269351438,0.229643,63581.0,63580.0,0.109045]
[1727269354341,0.078657,63571.0,63570.0,0.078656]
[1727269354647,0.228657,63571.0,63570.0,0.078656]
[1727269355449,0.229657,63571.0,63570.0,0.078656]
[1727269356130,0.228657,63571.0,63570.0,0.078656]
[1727269356327,0.229657,63571.0,63570.0,0.078656]
[1727269356538,0.24798927,63571.0,63570.0,0.078656]
[1727269358535,0.24798927,63571.0,63570.0,0.078656]
[1727269359536,0.09798927,63571.0,63570.0,0.078656]
[1727269359732,0.24798927,63571.0,63570.0,0.078656]
[1727269363146,0.078657,63570.0,63569.0,0.08101624]
[1727269364247,0.078657,63570.0,63569.0,0.00235924]
[1727269364845,0.078657,63570.0,63569.0,0.08101724]
[1727269365049,0.079657,63570.0,63569.0,0.08101724]
[1727269366144,0.079657,63570.0,63569.0,0.00235924]
[1727269366649,0.158314,63570.0,63569.0,0.00235924]
[1727269367451,0.308314,63570.0,63569.0,0.00235924]
[1727269369047,0.158314,63570.0,63569.0,0.00235924]
[1727269369246,0.308314,63570.0,63569.0,0.00235924]
[1727269369458,0.307314,63570.0,63569.0,0.00235924]
[1727269370848,0.307314,63570.0,63562.0,0.082367]
[1727269370849,0.078666,63563.0,63562.0,0.082367]
[1727269371149,0.078666,63563.0,63562.0,0.078667]
[1727269372249,0.078666,63563.0,63562.0,0.12568906]
[1727269372662,0.079666,63563.0,63562.0,0.12568906]
[1727269373055,0.079666,63563.0,63562.0,0.078667]
[1727269374252,0.078668,63561.0,63560.0,0.21979006]
[1727269374646,0.078668,63561.0,63560.0,0.172768]
[1727269375457,0.079668,63561.0,63560.0,0.172768]
[1727269375864,0.179668,63561.0,63560.0,0.172768]
[1727269377258,0.101,63561.0,63560.0,0.172768]
[1727269377461,0.179668,63561.0,63560.0,0.172768]
[1727269377764,0.101,63561.0,63560.0,0.172768]
[1727269378467,0.001,63561.0,63560.0,0.172768]
[1727269378662,0.101,63561.0,63560.0,0.172768]
[1727269381457,0.001,63561.0,63560.0,0.172768]
[1727269381657,0.101,63561.0,63560.0,0.172768]
[1727269381858,0.001,63561.0,63560.0,1.323437]
[1727269382063,0.01810077,63571.0,63569.0,0.078658]
[1727269382366,0.439454,63573.0,63572.0,0.157308]
[1727269382367,0.3616,63573.0,63572.0,0.157308]
[1727269382552,0.3608,63573.0,63572.0,0.157308]
[1727269382952,0.0037,63580.0,63579.0,0.078646]
[1727269383157,0.0037,63580.0,63573.0,0.097]
[1727269383158,0.1,63580.0,63573.0,0.097]
[1727269383355,0.1,63574.0,63573.0,0.097]
[1727269383558,0.4608,63574.0,63573.0,0.097]
[1727269383865,0.1,63574.0,63573.0,0.175653]
[1727269384469,0.15,63574.0,63573.0,0.175653]
[1727269385966,0.151,63574.0,63573.0,0.175653]
[1727269386165,0.001,63574.0,63573.0,0.175653]
[1727269386472,0.151,63574.0,63573.0,0.254306]
[1727269388384,0.151,63574.0,63573.0,0.175653]
[1727269388959,0.15,63574.0,63573.0,0.176653]
[1727269389662,0.15,63574.0,63573.0,0.175653]
[1727269389864,0.152,63574.0,63573.0,0.175653]
[1727269390270,0.152,63574.0,63573.0,0.22276579]
[1727269390569,0.22216999,63574.0,63573.0,0.175653]
[1727269391660,0.22216897,63574.0,63573.0,0.175653]
[1727269392067,0.22216897,63574.0,63573.0,0.254306]
[1727269392370,0.03365012,63574.0,63573.0,0.254306]
[1727269392759,0.03365012,63574.0,63573.0,0.332959]
[1727269394374,0.03165012,63574.0,63573.0,0.333959]
[1727269394868,0.18165012,63574.0,63573.0,0.333959]
[1727269395065,0.18165012,63574.0,63573.0,0.332959]
[1727269395272,0.18165012,63574.0,63573.0,0.333959]
[1727269395971,0.18165012,63574.0,63573.0,0.332959]
[1727269397672,0.18165012,63574.0,63573.0,0.333959]
[1727269398667,0.15,63574.0,63573.0,0.333959]
[1727269399075,0.15,63574.0,63573.0,0.332959]
[1727269400071,0.0037,63583.0,63582.0,0.235926]
[1727269400379,0.078623,63598.0,63582.0,0.235926]
[1727269400380,0.0037,63590.0,63589.0,0.157266]
[1727269400563,0.01819841,63594.0,63593.0,0.157256]
[1727269400873,0.1537,63597.0,63596.0,0.078625]
[1727269400874,0.15,63597.0,63596.0,0.078625]
[1727269401066,0.16860938,63597.0,63596.0,0.078625]
[1727269401663,0.15,63597.0,63596.0,0.078625]
[1727269403165,0.3608,63602.0,63601.0,0.078619]
[1727269403772,0.5108,63602.0,63601.0,0.078619]
[1727269404275,0.52912057,63602.0,63601.0,0.078619]
[1727269404672,0.54312057,63602.0,63601.0,0.078619]
[1727269404875,0.18232057,63602.0,63601.0,0.078619]
[1727269405764,0.22082123,63602.0,63601.0,0.078619]
[1727269405972,0.08534372,63602.0,63601.0,0.078619]
[1727269406274,0.04684314,63602.0,63601.0,0.078619]
[1727269407671,0.04684314,63602.0,63601.0,0.24785404]
[1727269407981,0.04684314,63602.0,63601.0,0.32647304]
[1727269408383,0.04684314,63602.0,63601.0,0.68727304]
[1727269408584,0.014,63602.0,63601.0,0.68727304]
[1727269408975,0.0037,63609.0,63608.0,0.07861]
[1727269409171,0.15818825,63611.0,63610.0,0.078607]
[1727269409383,0.19116545,63611.0,63610.0,0.078607]
[1727269410577,0.19120748,63611.0,63610.0,0.078607]
[1727269411480,0.18701923,63611.0,63610.0,0.078607]
[1727269411676,0.18701923,63611.0,63610.0,0.157214]
[1727269411878,0.04701923,63611.0,63610.0,0.157214]
[1727269412780,0.18701923,63611.0,63610.0,0.078607]
[1727269413887,0.154,63611.0,63610.0,0.078607]
[1727269414088,0.014,63611.0,63610.0,0.078607]
[1727269417794,0.014,63611.0,63610.0,0.157214]
[1727269418090,0.014,63611.0,63610.0,1.39343441]
[1727269418091,0.01218,63611.0,63610.0,1.39343441]
[1727269418296,0.01218,63611.0,63610.0,1.57204141]
[1727269418881,0.0177213,63619.0,63617.0,0.078599]
[1727269419079,0.0177213,63619.0,63616.0,0.078599]
[1727269419279,0.1,63620.0,63619.0,0.078596]
[1727269419481,0.0037,63625.0,63618.0,0.1]
[1727269419686,0.078585,63628.0,63627.0,0.078586]
[1727269420192,0.0947,63629.0,63628.0,0.078585]
[1727269421490,0.3616,63630.0,63629.0,0.078584]
[1727269421682,0.37902911,63630.0,63629.0,0.078584]
[1727269422585,0.01822911,63630.0,63629.0,0.078584]
[1727269422784,0.07858,63632.0,63630.0,0.078583]
[1727269422785,0.3608,63631.0,63630.0,0.078583]
[1727269426488,0.3688,63631.0,63630.0,0.079583]
[1727269427983,0.3618,63631.0,63630.0,0.158166]
[1727269428690,0.3618,63631.0,63630.0,0.236749]
[1727269428691,0.001,63631.0,63630.0,0.236749]
[1727269428891,0.07857622,63631.0,63630.0,0.236749]
[1727269429396,0.07863526,63631.0,63630.0,0.236749]
[1727269429692,0.001,63631.0,63630.0,0.236749]
[1727269429891,0.07763526,63632.0,63631.0,0.157162]
[1727269430193,0.07763526,63632.0,63631.0,0.078581]
[1727269430398,0.09314907,63636.0,63630.0,0.079583]
[1727269430585,0.3616,63639.0,63630.0,0.079583]
[1727269430586,0.07762369,63631.0,63630.0,0.079583]
[1727269430978,0.07762369,63631.0,63630.0,0.078583]
[1727269431182,0.07762369,63631.0,63630.0,0.157166]
[1727269431379,0.009,63632.0,63630.0,0.157166]
[1727269431380,0.08662369,63632.0,63631.0,0.157162]
[1727269431987,0.009,63632.0,63631.0,0.157162]
[1727269432187,0.08661931,63632.0,63631.0,0.157162]
[1727269432691,0.009,63632.0,63631.0,0.157162]
[1727269432988,0.07762689,63633.0,63632.0,0.07858]
[1727269433195,0.09314907,63637.0,63636.0,0.078575]
[1727269434396,0.3608,63639.0,63638.0,0.078573]
[1727269436394,0.3608,63639.0,63638.0,0.079573]
[1727269436395,0.3728,63639.0,63638.0,0.079573]
[1727269439400,0.451372,63639.0,63638.0,0.079573]
[1727269443393,0.3728,63639.0,63638.0,0.079573]
[1727269443798,0.3728,63639.0,63638.0,0.158146]
[1727269444100,0.45054249,63639.0,63638.0,0.158146]
[1727269444293,0.3728,63639.0,63638.0,0.158146]
[1727269444599,0.3728,63639.0,63638.0,0.236719]
[1727269444600,0.012,63639.0,63638.0,0.236719]
[1727269446391,0.012,63639.0,63638.0,0.40828759]
[1727269447105,0.07776778,63645.0,63644.0,0.078565]
[1727269447302,0.3608,63646.0,63645.0,0.078564]
[1727269448209,0.45396922,63646.0,63645.0,0.078564]
[1727269448424,0.3608,63646.0,63645.0,0.078564]
[1727269449702,0.09343491,63650.0,63644.0,0.219565]
[1727269449908,0.09343491,63650.0,63649.0,0.078559]
[1727269450294,0.0023573,63652.0,63647.0,0.3608]
[1727269450498,0.09346496,63651.0,63647.0,0.3608]
[1727269450806,0.0037,63656.0,63655.0,0.078552]
[1727269451011,0.113843,63663.0,63662.0,0.078543]
[1727269451199,0.110143,63663.0,63662.0,0.078543]
[1727269452109,0.3608,63664.0,63662.0,0.078543]
[1727269452310,0.3608,63664.0,63663.0,0.218542]
[1727269452908,0.3608,63664.0,63663.0,0.078542]
[1727269453205,0.3608,63664.0,63663.0,0.218542]
[1727269453412,0.3718,63664.0,63663.0,0.218542]
[1727269454006,0.38956841,63664.0,63663.0,0.218542]
[1727269454204,0.38956841,63664.0,63663.0,0.219542]
[1727269455810,0.3718,63664.0,63663.0,0.219542]
[1727269456901,0.011,63664.0,63663.0,0.219542]
[1727269458899,0.011,63664.0,63663.0,0.079542]
[1727269459714,0.011,63664.0,63663.0,0.39668037]
[1727269459904,0.011,63664.0,63663.0,0.47522237]
[1727269463225,0.01771822,63668.0,63667.0,0.078537]
[1727269463402,0.01771822,63668.0,63667.0,0.218537]
[1727269465019,0.06219094,63671.0,63667.0,0.218537]
[1727269465020,0.06219094,63671.0,63670.0,0.078533]
[1727269465819,0.06219094,63671.0,63667.0,0.14]
[1727269465820,0.07848586,63671.0,63667.0,0.14]
[1727269466013,0.07848586,63670.0,63669.0,0.078535]
[1727269466419,0.20283419,63671.0,63670.0,0.078533]
[1727269466612,0.12430653,63672.0,63671.0,0.078532]
[1727269466804,0.20282322,63672.0,63671.0,0.078532]
[1727269467512,0.20284425,63672.0,63671.0,0.078532]
[1727269468309,0.07851669,63672.0,63671.0,0.078532]
[1727269468614,0.03633271,63672.0,63671.0,0.218532]
[1727269469414,0.08853338,63672.0,63671.0,0.219532]
[1727269469620,0.19740993,63672.0,63671.0,0.219532]
[1727269469822,0.05223049,63672.0,63671.0,0.219532]
[1727269470014,0.01,63672.0,63671.0,0.219532]
[1727269470408,0.08860326,63672.0,63671.0,0.219532]
[1727269471221,0.04637277,63672.0,63671.0,0.219532]
[1727269471416,0.01,63672.0,63671.0,0.219532]
[1727269471613,0.08860893,63672.0,63671.0,0.219532]
[1727269472919,0.08860893,63672.0,63671.0,0.376596]
[1727269473122,0.01,63672.0,63671.0,0.376596]
[1727269473311,0.01,63672.0,63671.0,0.55090546]
[1727269474323,1e-06,63672.0,63671.0,0.92978626]
[1727269476037,0.0622828,63676.0,63675.0,0.157054]
[1727269476320,0.0622828,63677.0,63676.0,0.235578]
[1727269476520,0.0778535,63682.0,63676.0,0.218526]
[1727269476727,0.0623217,63678.0,63677.0,0.25287808]
[1727269476922,0.0623217,63678.0,63677.0,0.51785]
[1727269477324,0.0778535,63682.0,63681.0,0.07852]
[1727269477528,0.0778535,63682.0,63681.0,0.21852]
[1727269478217,0.0778535,63684.0,63683.0,0.078517]
[1727269478524,0.144908,63688.0,63687.0,0.078512]
[1727269478726,0.144908,63688.0,63687.0,0.218512]
[1727269478930,0.0514838,63688.0,63687.0,0.218512]
[1727269479117,0.144908,63688.0,63687.0,0.218512]
[1727269479312,0.0514838,63688.0,63687.0,0.218512]
[1727269479727,0.14503053,63688.0,63687.0,0.218512]
[1727269480016,0.0514838,63688.0,63687.0,0.218512]
[1727269480221,0.14501391,63688.0,63687.0,0.219512]
[1727269480617,0.0514838,63688.0,63687.0,0.219512]
[1727269480820,0.18087825,63688.0,63687.0,0.219512]
[1727269481229,0.14777825,63688.0,63687.0,0.219512]
[1727269481423,0.30107952,63688.0,63687.0,0.298024]
[1727269481920,0.12939445,63688.0,63687.0,0.298024]
[1727269482321,0.14033108,63689.0,63688.0,0.157022]
[1727269482628,0.13030008,63689.0,63688.0,0.157022]
[1727269482824,0.08084215,63689.0,63688.0,0.157022]
[1727269483426,0.08084215,63689.0,63688.0,0.158022]
[1727269483620,0.12467476,63689.0,63688.0,0.158022]
[1727269483819,0.08084215,63689.0,63688.0,0.158022]
[1727269484020,0.16820302,63690.0,63689.0,0.07851]